[Event "Titled Tuesday Blitz April 05 Early 2022"]
[White "Sovetbekova, Nurai"]
[Black "Pourkashiyan, Atousa"]
[WhiteFideId "13801910"]
[BlackFideId "12502014"]
[WhiteElo "1538"]
[BlackElo "2247"]
[Result "1-0"]
[Round "07"]
[TimeControl "180+1"]
[Date "2022.04.05"]
[WhiteClock "0:00:03"]
[BlackClock "0:00:38"]

1. d4 {[%clk 0:03:00]}  Nf6 {[%clk 0:02:56]} 2. c4 {[%clk 0:03:00]}  g6 {[%clk 0:02:53]} 3. g3 {[%clk 0:02:59]}  Bg7 {[%clk 0:02:53]} 4. Bg2 {[%clk 0:03:00]}  c6 {[%clk 0:02:52]} 5. Nf3 {[%clk 0:03:00]}  d5 {[%clk 0:02:52]} 6. O-O {[%clk 0:02:59]}  O-O {[%clk 0:02:52]} 7. b3 {[%clk 0:02:31]}  Bf5 {[%clk 0:02:37]} 8. Nc3 {[%clk 0:02:29]}  Nbd7 {[%clk 0:02:36]} 9. Bf4 {[%clk 0:02:11]}  Nh5 {[%clk 0:02:27]} 10. Be3 {[%clk 0:02:08]}  Nb6 {[%clk 0:02:22]} 11. cxd5 {[%clk 0:01:53]}  cxd5 {[%clk 0:02:21]} 12. Rc1 {[%clk 0:01:51]}  Rc8 {[%clk 0:02:20]} 13. Qd2 {[%clk 0:01:50]}  Nf6 {[%clk 0:02:17]} 14. Bh6 {[%clk 0:01:41]}  Ne4 {[%clk 0:02:00]} 15. Nxe4 {[%clk 0:01:24]}  dxe4 {[%clk 0:02:01]} 16. Rxc8 {[%clk 0:01:07]}  Nxc8 {[%clk 0:01:52]} 17. Nh4 {[%clk 0:00:53]}  Bxd4 {[%clk 0:01:33]} 18. Nxf5 {[%clk 0:00:39]}  gxf5 {[%clk 0:01:33]} 19. Qg5+ {[%clk 0:00:26]}  Kh8 {[%clk 0:01:33]} 20. Bxf8 {[%clk 0:00:19]}  Qxf8 {[%clk 0:01:34]} 21. Qxf5 {[%clk 0:00:19]}  Nd6 {[%clk 0:01:34]} 22. Qd5 {[%clk 0:00:18]}  Qg7 {[%clk 0:01:30]} 23. Bxe4 {[%clk 0:00:16]}  Bb6 {[%clk 0:01:21]} 24. Rd1 {[%clk 0:00:14]}  Qb2 {[%clk 0:01:19]} 25. Bf3 {[%clk 0:00:10]}  Qf6 {[%clk 0:01:12]} 26. Qd3 {[%clk 0:00:10]}  Qb2 {[%clk 0:01:01]} 27. Rd2 {[%clk 0:00:09]}  Qa1+ {[%clk 0:01:00]} 28. Kg2 {[%clk 0:00:09]}  Qe5 {[%clk 0:01:00]} 29. Rc2 {[%clk 0:00:08]}  Kg7 {[%clk 0:00:52]} 30. Qd5 {[%clk 0:00:07]}  Qf6 {[%clk 0:00:49]} 31. Qd3 {[%clk 0:00:05]}  h6 {[%clk 0:00:47]} 32. Rd2 {[%clk 0:00:05]}  Qe5 {[%clk 0:00:46]} 33. Qc2 {[%clk 0:00:04]}  h5 {[%clk 0:00:40]} 34. Rd5 {[%clk 0:00:04]}  Qa1 {[%clk 0:00:38]} 35. Rxh5 {[%clk 0:00:03]}  Qe1 {[%clk 0:00:39]} 36. Qh7+ {[%clk 0:00:03]}  Kf6 {[%clk 0:00:38]} 37. Qh6# {[%clk 0:00:03]} 1-0


[Site "https://www.chess.com"]

[Event "Titled Tuesday Blitz April 05 Early 2022"]
[White "Tan, Jun Ying"]
[Black "Muradov, Soltan"]
[WhiteFideId "5710413"]
[BlackFideId "14002108"]
[WhiteElo "1827"]
[BlackElo "1854"]
[Result "1-0"]
[Round "07"]
[TimeControl "180+1"]
[Date "2022.04.05"]
[WhiteClock "0:02:12"]
[BlackClock "0:01:29"]

1. Nf3 {[%clk 0:03:00]}  Nf6 {[%clk 0:02:59]} 2. b3 {[%clk 0:03:01]}  e6 {[%clk 0:03:00]} 3. Bb2 {[%clk 0:03:01]}  b5 {[%clk 0:02:57]} 4. g3 {[%clk 0:03:01]}  Bb7 {[%clk 0:02:56]} 5. Bg2 {[%clk 0:03:02]}  c5 {[%clk 0:02:57]} 6. O-O {[%clk 0:03:03]}  Be7 {[%clk 0:02:57]} 7. c4 {[%clk 0:03:02]}  a6 {[%clk 0:02:55]} 8. d4 {[%clk 0:03:02]}  cxd4 {[%clk 0:02:55]} 9. Nxd4 {[%clk 0:03:00]}  Bxg2 {[%clk 0:02:54]} 10. Kxg2 {[%clk 0:03:01]}  bxc4 {[%clk 0:02:55]} 11. bxc4 {[%clk 0:03:01]}  Qc8 {[%clk 0:02:55]} 12. Qb3 {[%clk 0:03:00]}  Nc6 {[%clk 0:02:52]} 13. Nd2 {[%clk 0:03:00]}  Rb8 {[%clk 0:02:49]} 14. Qc2 {[%clk 0:02:58]}  Qb7 {[%clk 0:02:47]} 15. Nxc6 {[%clk 0:02:56]}  Qxb2 {[%clk 0:02:39]} 16. Rab1 {[%clk 0:02:32]}  Qxb1 {[%clk 0:01:45]} 17. Rxb1 {[%clk 0:02:30]}  Rxb1 {[%clk 0:01:44]} 18. Qxb1 {[%clk 0:02:28]}  dxc6 {[%clk 0:01:45]} 19. Qb7 {[%clk 0:02:28]}  Bd8 {[%clk 0:01:30]} 20. Qxc6+ {[%clk 0:02:23]}  Ke7 {[%clk 0:01:29]} 21. Nb3 {[%clk 0:02:12]} 1-0


[Site "https://www.chess.com"]

[Event "Titled Tuesday Blitz April 05 Early 2022"]
[White "Tasev, Dejan"]
[Black "Pires, Marcos Vinicius Torsani"]
[WhiteFideId "936618"]
[BlackFideId "2118939"]
[WhiteElo "2253"]
[BlackElo "2273"]
[Result "0-1"]
[Round "07"]
[TimeControl "180+1"]
[Date "2022.04.05"]
[WhiteClock "0:00:38"]
[BlackClock "0:00:46"]

1. e4 {[%clk 0:03:00]}  c5 {[%clk 0:02:59]} 2. Nf3 {[%clk 0:03:01]}  g6 {[%clk 0:02:55]} 3. Nc3 {[%clk 0:03:01]}  Nc6 {[%clk 0:02:52]} 4. d4 {[%clk 0:03:01]}  cxd4 {[%clk 0:02:51]} 5. Nxd4 {[%clk 0:03:02]}  Bg7 {[%clk 0:02:48]} 6. Be3 {[%clk 0:03:02]}  Nf6 {[%clk 0:02:48]} 7. Bc4 {[%clk 0:03:01]}  O-O {[%clk 0:02:47]} 8. Bb3 {[%clk 0:03:01]}  d5 {[%clk 0:02:45]} 9. exd5 {[%clk 0:03:01]}  Na5 {[%clk 0:02:45]} 10. Nde2 {[%clk 0:02:59]}  Nxb3 {[%clk 0:02:42]} 11. axb3 {[%clk 0:02:59]}  b5 {[%clk 0:02:39]} 12. b4 {[%clk 0:02:40]}  a5 {[%clk 0:02:31]} 13. O-O {[%clk 0:02:34]}  Bb7 {[%clk 0:02:27]} 14. bxa5 {[%clk 0:02:20]}  b4 {[%clk 0:02:25]} 15. Bb6 {[%clk 0:02:11]}  Qd7 {[%clk 0:02:18]} 16. Na4 {[%clk 0:02:11]}  Nxd5 {[%clk 0:02:09]} 17. Nc5 {[%clk 0:02:10]}  Qc6 {[%clk 0:02:06]} 18. Nxb7 {[%clk 0:02:09]}  Qxb7 {[%clk 0:02:07]} 19. Bd4 {[%clk 0:01:49]}  e5 {[%clk 0:02:04]} 20. Be3 {[%clk 0:01:41]}  Nxe3 {[%clk 0:02:02]} 21. fxe3 {[%clk 0:01:41]}  Rfd8 {[%clk 0:02:02]} 22. Qe1 {[%clk 0:01:34]}  Qb5 {[%clk 0:01:52]} 23. Qf2 {[%clk 0:01:27]}  f5 {[%clk 0:01:51]} 24. a6 {[%clk 0:01:23]}  Rd2 {[%clk 0:01:50]} 25. Rfe1 {[%clk 0:01:19]}  Rxa6 {[%clk 0:01:49]} 26. Rxa6 {[%clk 0:01:19]}  Qxa6 {[%clk 0:01:50]} 27. Qf3 {[%clk 0:01:18]}  e4 {[%clk 0:01:49]} 28. Qf1 {[%clk 0:01:16]}  Rxc2 {[%clk 0:01:46]} 29. Nf4 {[%clk 0:01:13]}  Qxf1+ {[%clk 0:01:44]} 30. Kxf1 {[%clk 0:01:11]}  Bxb2 {[%clk 0:01:44]} 31. Rd1 {[%clk 0:01:10]}  Bc1 {[%clk 0:01:34]} 32. Rd8+ {[%clk 0:01:06]}  Kf7 {[%clk 0:01:33]} 33. Rd7+ {[%clk 0:01:06]}  Kf6 {[%clk 0:01:29]} 34. Rxh7 {[%clk 0:01:05]}  b3 {[%clk 0:01:26]} 35. Rb7 {[%clk 0:01:02]}  b2 {[%clk 0:01:25]} 36. h4 {[%clk 0:00:58]}  Ke5 {[%clk 0:01:09]} 37. Nxg6+ {[%clk 0:00:53]}  Kd6 {[%clk 0:01:09]} 38. Ne7 {[%clk 0:00:48]}  f4 {[%clk 0:00:59]} 39. Nf5+ {[%clk 0:00:45]}  Ke5 {[%clk 0:00:53]} 40. Rb5+ {[%clk 0:00:45]}  Kf6 {[%clk 0:00:51]} 41. exf4 {[%clk 0:00:45]}  Bxf4 {[%clk 0:00:50]} 42. Nd4 {[%clk 0:00:41]}  Rc1+ {[%clk 0:00:48]} 43. Ke2 {[%clk 0:00:38]}  b1=Q {[%clk 0:00:46]} 0-1


[Site "https://www.chess.com"]

[Event "Titled Tuesday Blitz April 05 Early 2022"]
[White "Terletsky, Oleg"]
[Black "Onslow, Alfie"]
[WhiteFideId "14116774"]
[BlackFideId "436976"]
[WhiteElo "2064"]
[BlackElo "1884"]
[Result "1-0"]
[Round "07"]
[TimeControl "180+1"]
[Date "2022.04.05"]
[WhiteClock "0:00:15"]
[BlackClock "0:00:02"]

1. e4 {[%clk 0:03:00]}  c5 {[%clk 0:02:57]} 2. Nf3 {[%clk 0:02:58]}  Nc6 {[%clk 0:02:57]} 3. d4 {[%clk 0:02:55]}  cxd4 {[%clk 0:02:57]} 4. Nxd4 {[%clk 0:02:56]}  e5 {[%clk 0:02:57]} 5. Nb5 {[%clk 0:02:55]}  d6 {[%clk 0:02:57]} 6. N1c3 {[%clk 0:02:53]}  a6 {[%clk 0:02:57]} 7. Na3 {[%clk 0:02:54]}  b5 {[%clk 0:02:57]} 8. Nd5 {[%clk 0:02:55]}  Nge7 {[%clk 0:02:57]} 9. c4 {[%clk 0:02:44]}  Nd4 {[%clk 0:02:57]} 10. cxb5 {[%clk 0:02:42]}  Nxd5 {[%clk 0:02:52]} 11. exd5 {[%clk 0:02:42]}  Bd7 {[%clk 0:02:51]} 12. Bd3 {[%clk 0:02:38]}  axb5 {[%clk 0:02:46]} 13. O-O {[%clk 0:02:37]}  b4 {[%clk 0:02:14]} 14. Nc4 {[%clk 0:02:20]}  Be7 {[%clk 0:02:10]} 15. Be3 {[%clk 0:02:11]}  O-O {[%clk 0:02:07]} 16. Bxd4 {[%clk 0:02:10]}  exd4 {[%clk 0:02:07]} 17. Re1 {[%clk 0:02:00]}  Bb5 {[%clk 0:01:50]} 18. Qb3 {[%clk 0:01:40]}  Rb8 {[%clk 0:01:38]} 19. Re4 {[%clk 0:01:25]}  Bf6 {[%clk 0:01:33]} 20. Rae1 {[%clk 0:01:25]}  g6 {[%clk 0:01:29]} 21. g3 {[%clk 0:01:12]}  h5 {[%clk 0:01:09]} 22. h4 {[%clk 0:01:11]}  Kg7 {[%clk 0:01:09]} 23. Nd2 {[%clk 0:01:07]}  Bxd3 {[%clk 0:01:03]} 24. Qxd3 {[%clk 0:01:07]}  Qa5 {[%clk 0:01:00]} 25. Qb3 {[%clk 0:00:55]}  Rfc8 {[%clk 0:00:54]} 26. Rf4 {[%clk 0:00:37]}  Be5 {[%clk 0:00:49]} 27. Rfe4 {[%clk 0:00:26]}  Qc5 {[%clk 0:00:46]} 28. Nf3 {[%clk 0:00:16]}  Bf6 {[%clk 0:00:26]} 29. Ng5 {[%clk 0:00:16]}  Qc2 {[%clk 0:00:23]} 30. Qf3 {[%clk 0:00:16]}  d3 {[%clk 0:00:16]} 31. Re7 {[%clk 0:00:15]}  Rf8 {[%clk 0:00:06]} 32. Ne6+ {[%clk 0:00:15]}  Kh7 {[%clk 0:00:02]} 33. Qxf6 {[%clk 0:00:15]} 1-0


[Site "https://www.chess.com"]

[Event "Titled Tuesday Blitz April 05 Early 2022"]
[White "Todorovic, Bojan"]
[Black "Bashirli, Saadat"]
[WhiteFideId "917087"]
[BlackFideId "13429990"]
[WhiteElo "2266"]
[BlackElo "1173"]
[Result "0-1"]
[Round "07"]
[TimeControl "180+1"]
[Date "2022.04.05"]
[WhiteClock "0:00:02"]
[BlackClock "0:00:53"]

1. d4 {[%clk 0:02:59]}  d5 {[%clk 0:02:58]} 2. Bf4 {[%clk 0:02:58]}  c5 {[%clk 0:02:56]} 3. dxc5 {[%clk 0:02:57]}  e6 {[%clk 0:02:55]} 4. e4 {[%clk 0:02:49]}  Bxc5 {[%clk 0:02:52]} 5. exd5 {[%clk 0:02:44]}  exd5 {[%clk 0:02:53]} 6. Nc3 {[%clk 0:02:38]}  Nf6 {[%clk 0:02:49]} 7. Bxb8 {[%clk 0:02:29]}  Rxb8 {[%clk 0:02:46]} 8. Bb5+ {[%clk 0:02:29]}  Bd7 {[%clk 0:02:44]} 9. Qe2+ {[%clk 0:02:25]}  Qe7 {[%clk 0:02:41]} 10. Bxd7+ {[%clk 0:02:24]}  Kxd7 {[%clk 0:02:39]} 11. O-O-O {[%clk 0:02:10]}  Qxe2 {[%clk 0:02:36]} 12. Ngxe2 {[%clk 0:02:10]}  Bxf2 {[%clk 0:02:35]} 13. Nxd5 {[%clk 0:02:10]}  Nxd5 {[%clk 0:02:32]} 14. Rxd5+ {[%clk 0:02:09]}  Kc6 {[%clk 0:02:32]} 15. Rhd1 {[%clk 0:01:53]}  Be3+ {[%clk 0:02:26]} 16. Kb1 {[%clk 0:01:52]}  Bc5 {[%clk 0:02:24]} 17. Rd7 {[%clk 0:01:48]}  Rhf8 {[%clk 0:02:23]} 18. Nc3 {[%clk 0:01:40]}  Rbe8 {[%clk 0:02:22]} 19. a3 {[%clk 0:01:35]}  Re6 {[%clk 0:02:16]} 20. b4 {[%clk 0:01:31]}  Bd6 {[%clk 0:02:08]} 21. R7xd6+ {[%clk 0:01:12]}  Rxd6 {[%clk 0:02:06]} 22. b5+ {[%clk 0:01:11]}  Kc7 {[%clk 0:02:05]} 23. Nd5+ {[%clk 0:01:07]}  Kd7 {[%clk 0:02:04]} 24. c4 {[%clk 0:01:06]}  Rc8 {[%clk 0:02:00]} 25. Rd4 {[%clk 0:00:43]}  f6 {[%clk 0:01:56]} 26. Kb2 {[%clk 0:00:42]}  b6 {[%clk 0:01:50]} 27. Kb3 {[%clk 0:00:40]}  Re8 {[%clk 0:01:48]} 28. Rd2 {[%clk 0:00:30]}  Re5 {[%clk 0:01:44]} 29. Kb4 {[%clk 0:00:29]}  Re1 {[%clk 0:01:41]} 30. a4 {[%clk 0:00:19]}  Rb1+ {[%clk 0:01:38]} 31. Kc3 {[%clk 0:00:20]}  Ra1 {[%clk 0:01:37]} 32. Re2 {[%clk 0:00:20]}  Re6 {[%clk 0:01:34]} 33. Rd2 {[%clk 0:00:17]}  Kc8 {[%clk 0:01:28]} 34. Kb4 {[%clk 0:00:16]}  Rb1+ {[%clk 0:01:26]} 35. Kc3 {[%clk 0:00:17]}  Rbe1 {[%clk 0:01:19]} 36. Kb4 {[%clk 0:00:16]}  R1e2 {[%clk 0:01:19]} 37. Rd1 {[%clk 0:00:13]}  Rxg2 {[%clk 0:01:17]} 38. a5 {[%clk 0:00:13]}  bxa5+ {[%clk 0:01:10]} 39. Kxa5 {[%clk 0:00:13]}  Rxh2 {[%clk 0:01:09]} 40. c5 {[%clk 0:00:13]}  Ra2+ {[%clk 0:01:03]} 41. Kb4 {[%clk 0:00:13]}  h5 {[%clk 0:01:00]} 42. c6 {[%clk 0:00:13]}  h4 {[%clk 0:00:58]} 43. Kc5 {[%clk 0:00:14]}  Rc2+ {[%clk 0:00:56]} 44. Kb4 {[%clk 0:00:12]}  h3 {[%clk 0:00:54]} 45. Rh1 {[%clk 0:00:02]}  h2 {[%clk 0:00:53]} 0-1


[Site "https://www.chess.com"]

[Event "Titled Tuesday Blitz April 05 Early 2022"]
[White "Tregubov, Pavel V."]
[Black "Koridze, Lile"]
[WhiteFideId "4115341"]
[BlackFideId "13612514"]
[WhiteElo "2341"]
[BlackElo "2050"]
[Result "1-0"]
[Round "07"]
[TimeControl "180+1"]
[Date "2022.04.05"]
[WhiteClock "0:01:15"]
[BlackClock "0:02:02"]

1. e4 {[%clk 0:03:00]}  c5 {[%clk 0:02:59]} 2. Nf3 {[%clk 0:03:00]}  d6 {[%clk 0:03:00]} 3. Bb5+ {[%clk 0:02:59]}  Nd7 {[%clk 0:03:00]} 4. Ba4 {[%clk 0:02:59]}  a6 {[%clk 0:03:00]} 5. c3 {[%clk 0:02:58]}  b5 {[%clk 0:02:59]} 6. Bc2 {[%clk 0:02:58]}  Bb7 {[%clk 0:03:00]} 7. d4 {[%clk 0:02:58]}  cxd4 {[%clk 0:03:00]} 8. cxd4 {[%clk 0:02:58]}  Ngf6 {[%clk 0:03:00]} 9. Nbd2 {[%clk 0:02:59]}  e5 {[%clk 0:02:59]} 10. O-O {[%clk 0:02:57]}  Be7 {[%clk 0:02:59]} 11. d5 {[%clk 0:02:53]}  O-O {[%clk 0:02:59]} 12. a4 {[%clk 0:02:52]}  Nc5 {[%clk 0:02:58]} 13. Re1 {[%clk 0:02:50]}  b4 {[%clk 0:02:53]} 14. Nb3 {[%clk 0:02:48]}  Nxb3 {[%clk 0:02:53]} 15. Bxb3 {[%clk 0:02:48]}  a5 {[%clk 0:02:53]} 16. Bc4 {[%clk 0:02:45]}  Nd7 {[%clk 0:02:54]} 17. Qe2 {[%clk 0:02:35]}  Nc5 {[%clk 0:02:52]} 18. Nd2 {[%clk 0:02:27]}  Qd7 {[%clk 0:02:51]} 19. Bb5 {[%clk 0:02:24]}  Qc8 {[%clk 0:02:50]} 20. Nc4 {[%clk 0:02:21]}  f5 {[%clk 0:02:50]} 21. Nb6 {[%clk 0:02:19]}  Qb8 {[%clk 0:02:46]} 22. Nxa8 {[%clk 0:02:19]}  Qxa8 {[%clk 0:02:47]} 23. f3 {[%clk 0:02:13]}  Bh4 {[%clk 0:02:37]} 24. Rf1 {[%clk 0:02:03]}  fxe4 {[%clk 0:02:37]} 25. fxe4 {[%clk 0:02:02]}  Qd8 {[%clk 0:02:36]} 26. Bd2 {[%clk 0:01:55]}  Bf6 {[%clk 0:02:35]} 27. Qc4 {[%clk 0:01:41]}  Qe7 {[%clk 0:02:33]} 28. Be3 {[%clk 0:01:41]}  Rc8 {[%clk 0:02:33]} 29. Rac1 {[%clk 0:01:35]}  Bg5 {[%clk 0:02:26]} 30. Bxg5 {[%clk 0:01:27]}  Qxg5 {[%clk 0:02:26]} 31. Qe2 {[%clk 0:01:27]}  Qh4 {[%clk 0:02:13]} 32. Rce1 {[%clk 0:01:23]}  Nb3 {[%clk 0:02:10]} 33. Bd7 {[%clk 0:01:21]}  Rd8 {[%clk 0:02:08]} 34. Qg4 {[%clk 0:01:19]}  Qe7 {[%clk 0:02:05]} 35. Qe6+ {[%clk 0:01:18]}  Qxe6 {[%clk 0:02:04]} 36. dxe6 {[%clk 0:01:17]}  Nc5 {[%clk 0:02:02]} 37. e7 {[%clk 0:01:15]} 1-0


[Site "https://www.chess.com"]

[Event "Titled Tuesday Blitz April 05 Early 2022"]
[White "Van den Dikkenberg, Erik"]
[Black "Demin, Vladimir"]
[WhiteFideId "1005880"]
[BlackFideId "4167457"]
[WhiteElo "2118"]
[BlackElo "2433"]
[Result "1-0"]
[Round "07"]
[TimeControl "180+1"]
[Date "2022.04.05"]
[WhiteClock "0:00:21"]
[BlackClock "0:00:02"]

1. e4 {[%clk 0:03:00]}  c5 {[%clk 0:02:59]} 2. Nc3 {[%clk 0:03:00]}  Nc6 {[%clk 0:02:57]} 3. f4 {[%clk 0:03:01]}  d6 {[%clk 0:02:56]} 4. Nf3 {[%clk 0:03:02]}  g6 {[%clk 0:02:54]} 5. Bb5 {[%clk 0:03:03]}  a6 {[%clk 0:02:53]} 6. O-O {[%clk 0:03:04]}  axb5 {[%clk 0:02:52]} 7. d3 {[%clk 0:03:04]}  b4 {[%clk 0:02:52]} 8. Nd5 {[%clk 0:02:54]}  e6 {[%clk 0:02:52]} 9. Ne3 {[%clk 0:02:53]}  f5 {[%clk 0:02:51]} 10. exf5 {[%clk 0:02:52]}  exf5 {[%clk 0:02:50]} 11. Nd5 {[%clk 0:02:52]}  Be6 {[%clk 0:02:49]} 12. Re1 {[%clk 0:02:52]}  Kd7 {[%clk 0:02:38]} 13. c4 {[%clk 0:02:38]}  Bxd5 {[%clk 0:02:38]} 14. cxd5 {[%clk 0:02:38]}  Nce7 {[%clk 0:02:33]} 15. Qe2 {[%clk 0:02:37]}  Nxd5 {[%clk 0:02:27]} 16. Qe6+ {[%clk 0:02:37]}  Kc6 {[%clk 0:02:27]} 17. Ne5+ {[%clk 0:02:35]}  Kc7 {[%clk 0:02:21]} 18. Nf7 {[%clk 0:02:33]}  Qf6 {[%clk 0:01:24]} 19. Qxd5 {[%clk 0:02:29]}  Ne7 {[%clk 0:01:17]} 20. Qc4 {[%clk 0:02:22]}  b5 {[%clk 0:01:12]} 21. Qe6 {[%clk 0:01:54]}  Qxe6 {[%clk 0:00:42]} 22. Rxe6 {[%clk 0:01:54]}  Rg8 {[%clk 0:00:40]} 23. Bd2 {[%clk 0:01:43]}  Nc6 {[%clk 0:00:40]} 24. Rae1 {[%clk 0:01:42]}  Bg7 {[%clk 0:00:37]} 25. Nxd6 {[%clk 0:01:36]}  Bxb2 {[%clk 0:00:28]} 26. Nxb5+ {[%clk 0:01:34]}  Kb6 {[%clk 0:00:28]} 27. Nd6 {[%clk 0:01:33]}  Rxa2 {[%clk 0:00:18]} 28. Nc4+ {[%clk 0:01:33]}  Kb5 {[%clk 0:00:18]} 29. Rb1 {[%clk 0:01:17]}  Bd4+ {[%clk 0:00:15]} 30. Kh1 {[%clk 0:01:15]}  Rd8 {[%clk 0:00:13]} 31. h3 {[%clk 0:01:10]}  Rc2 {[%clk 0:00:12]} 32. Be1 {[%clk 0:00:58]}  Na5 {[%clk 0:00:09]} 33. Na3+ {[%clk 0:00:54]}  Ka4 {[%clk 0:00:06]} 34. Nxc2 {[%clk 0:00:54]}  Nb3 {[%clk 0:00:04]} 35. Nxd4 {[%clk 0:00:52]}  Nxd4 {[%clk 0:00:04]} 36. Re7 {[%clk 0:00:48]}  Ka3 {[%clk 0:00:04]} 37. Rxh7 {[%clk 0:00:44]}  Ka2 {[%clk 0:00:03]} 38. Rd1 {[%clk 0:00:42]}  b3 {[%clk 0:00:04]} 39. Ra7+ {[%clk 0:00:42]}  Kb2 {[%clk 0:00:04]} 40. Rd2+ {[%clk 0:00:42]}  Kc1 {[%clk 0:00:03]} 41. Rf2 {[%clk 0:00:40]}  b2 {[%clk 0:00:03]} 42. Rb7 {[%clk 0:00:37]}  b1=Q {[%clk 0:00:03]} 43. Bd2+ {[%clk 0:00:34]}  Kc2+ {[%clk 0:00:03]} 44. Rxb1 {[%clk 0:00:28]}  Kxb1 {[%clk 0:00:03]} 45. Ba5 {[%clk 0:00:26]}  Re8 {[%clk 0:00:02]} 46. Bb6 {[%clk 0:00:25]}  Re2 {[%clk 0:00:02]} 47. Rf1+ {[%clk 0:00:21]} 1-0


[Site "https://www.chess.com"]

[Event "Titled Tuesday Blitz April 05 Early 2022"]
[White "Vasquez Schroeder, Rodrigo"]
[Black "Aldokhin, Ivan"]
[WhiteFideId "3400042"]
[BlackFideId "24115720"]
[WhiteElo "2900"]
[BlackElo "2600"]
[Result "0-1"]
[Round "07"]
[TimeControl "180+1"]
[Date "2022.04.05"]
[WhiteClock "0:00:39"]
[BlackClock "0:00:08"]

1. e4 {[%clk 0:03:00]}  c5 {[%clk 0:02:59]} 2. Nf3 {[%clk 0:03:00]}  e6 {[%clk 0:03:00]} 3. d4 {[%clk 0:03:01]}  cxd4 {[%clk 0:03:00]} 4. Nxd4 {[%clk 0:03:01]}  Nc6 {[%clk 0:02:59]} 5. Nb5 {[%clk 0:03:00]}  Nf6 {[%clk 0:02:57]} 6. N1c3 {[%clk 0:02:59]}  Bb4 {[%clk 0:02:55]} 7. a3 {[%clk 0:02:59]}  Bxc3+ {[%clk 0:02:55]} 8. Nxc3 {[%clk 0:03:00]}  d5 {[%clk 0:02:55]} 9. exd5 {[%clk 0:03:01]}  exd5 {[%clk 0:02:56]} 10. Bd3 {[%clk 0:03:01]}  d4 {[%clk 0:02:55]} 11. Ne4 {[%clk 0:02:57]}  Nxe4 {[%clk 0:02:52]} 12. Bxe4 {[%clk 0:02:57]}  O-O {[%clk 0:02:52]} 13. O-O {[%clk 0:02:56]}  Qf6 {[%clk 0:02:48]} 14. Qh5 {[%clk 0:02:51]}  h6 {[%clk 0:02:46]} 15. Re1 {[%clk 0:02:48]}  Bd7 {[%clk 0:02:35]} 16. Bd2 {[%clk 0:02:41]}  Rae8 {[%clk 0:02:33]} 17. f4 {[%clk 0:02:26]}  Re6 {[%clk 0:02:07]} 18. Bd3 {[%clk 0:02:22]}  Rfe8 {[%clk 0:02:03]} 19. Rxe6 {[%clk 0:02:19]}  Rxe6 {[%clk 0:01:57]} 20. Qf3 {[%clk 0:02:09]}  Rd6 {[%clk 0:01:34]} 21. Qe4 {[%clk 0:02:05]}  g6 {[%clk 0:01:31]} 22. Re1 {[%clk 0:02:02]}  Bf5 {[%clk 0:01:12]} 23. Qe8+ {[%clk 0:01:50]}  Kg7 {[%clk 0:01:11]} 24. Bxf5 {[%clk 0:01:50]}  Qxf5 {[%clk 0:01:09]} 25. Qe4 {[%clk 0:01:49]}  Qxe4 {[%clk 0:00:57]} 26. Rxe4 {[%clk 0:01:49]}  Kf6 {[%clk 0:00:55]} 27. Kf2 {[%clk 0:01:48]}  Re6 {[%clk 0:00:49]} 28. Kf3 {[%clk 0:01:47]}  Rxe4 {[%clk 0:00:49]} 29. Kxe4 {[%clk 0:01:47]}  Ke6 {[%clk 0:00:50]} 30. Be1 {[%clk 0:01:46]}  f5+ {[%clk 0:00:48]} 31. Kd3 {[%clk 0:01:46]}  Kd5 {[%clk 0:00:48]} 32. Bf2 {[%clk 0:01:45]}  g5 {[%clk 0:00:45]} 33. Bg3 {[%clk 0:01:37]}  a5 {[%clk 0:00:37]} 34. h4 {[%clk 0:01:24]}  gxf4 {[%clk 0:00:30]} 35. Bxf4 {[%clk 0:01:23]}  h5 {[%clk 0:00:30]} 36. b3 {[%clk 0:01:14]}  Nd8 {[%clk 0:00:30]} 37. Bc7 {[%clk 0:00:58]}  Ne6 {[%clk 0:00:25]} 38. Bxa5 {[%clk 0:00:55]}  Nf4+ {[%clk 0:00:24]} 39. Kd2 {[%clk 0:00:55]}  Nxg2 {[%clk 0:00:21]} 40. Bd8 {[%clk 0:00:56]}  Ke4 {[%clk 0:00:18]} 41. a4 {[%clk 0:00:47]}  f4 {[%clk 0:00:17]} 42. Bc7 {[%clk 0:00:46]}  f3 {[%clk 0:00:16]} 43. Bg3 {[%clk 0:00:45]}  Ne3 {[%clk 0:00:16]} 44. Bf2 {[%clk 0:00:44]}  Nd5 {[%clk 0:00:15]} 45. a5 {[%clk 0:00:40]}  Nb4 {[%clk 0:00:14]} 46. Bxd4 {[%clk 0:00:33]}  Kxd4 {[%clk 0:00:06]} 47. c3+ {[%clk 0:00:33]}  Kc5 {[%clk 0:00:05]} 48. cxb4+ {[%clk 0:00:34]}  Kxb4 {[%clk 0:00:05]} 49. Ke3 {[%clk 0:00:34]}  Kxb3 {[%clk 0:00:04]} 50. Kxf3 {[%clk 0:00:35]}  Ka4 {[%clk 0:00:05]} 51. Kf4 {[%clk 0:00:36]}  Kxa5 {[%clk 0:00:05]} 52. Kg5 {[%clk 0:00:37]}  b5 {[%clk 0:00:06]} 53. Kxh5 {[%clk 0:00:38]}  b4 {[%clk 0:00:06]} 54. Kg4 {[%clk 0:00:39]}  b3 {[%clk 0:00:07]} 55. h5 {[%clk 0:00:39]}  b2 {[%clk 0:00:08]} 56. h6 {[%clk 0:00:39]}  b1=Q {[%clk 0:00:08]} 0-1


[Site "https://www.chess.com"]

[Event "Titled Tuesday Blitz April 05 Early 2022"]
[White "nobodyperfect13"]
[Black "Martin Duque, Jesus"]
[BlackFideId "2208954"]
[WhiteElo "1944"]
[BlackElo "2243"]
[Result "0-1"]
[Round "07"]
[TimeControl "180+1"]
[Date "2022.04.05"]
[WhiteClock "0:02:27"]
[BlackClock "0:02:35"]

1. c4 {[%clk 0:03:00]}  e5 {[%clk 0:02:55]} 2. g3 {[%clk 0:03:00]}  Nc6 {[%clk 0:02:54]} 3. Bg2 {[%clk 0:03:00]}  Bc5 {[%clk 0:02:54]} 4. e3 {[%clk 0:03:00]}  h5 {[%clk 0:02:54]} 5. h4 {[%clk 0:02:55]}  a6 {[%clk 0:02:53]} 6. Ne2 {[%clk 0:02:55]}  d6 {[%clk 0:02:53]} 7. d4 {[%clk 0:02:55]}  Ba7 {[%clk 0:02:53]} 8. Nbc3 {[%clk 0:02:54]}  Nf6 {[%clk 0:02:48]} 9. b3 {[%clk 0:02:46]}  Bg4 {[%clk 0:02:45]} 10. Qd3 {[%clk 0:02:41]}  Qe7 {[%clk 0:02:42]} 11. a3 {[%clk 0:02:33]}  exd4 {[%clk 0:02:41]} 12. Nd5 {[%clk 0:02:31]}  Nxd5 {[%clk 0:02:39]} 13. cxd5 {[%clk 0:02:32]}  Ne5 {[%clk 0:02:39]} 14. Qe4 {[%clk 0:02:27]}  f5 {[%clk 0:02:35]} 0-1


[Site "https://www.chess.com"]